[Event "Titled Tuesday Blitz October 25 Early 2022"]
[White "Caruana, Fabiano"]
[Black "Beerdsen, Thomas"]
[WhiteFideId "2020009"]
[BlackFideId "1030108"]
[WhiteElo "2847"]
[BlackElo "2567"]
[Result "1/2-1/2"]
[Round "04"]
[TimeControl "180+1"]
[Date "2022.10.25"]
[WhiteClock "0:00:15"]
[BlackClock "0:00:11"]

1. d4 {[%clk 0:03:00]}  d5 {[%clk 0:02:59]} 2. c4 {[%clk 0:02:59]}  Nc6 {[%clk 0:03:00]} 3. cxd5 {[%clk 0:02:58]}  Qxd5 {[%clk 0:03:01]} 4. e3 {[%clk 0:02:59]}  e5 {[%clk 0:03:01]} 5. Nc3 {[%clk 0:02:59]}  Bb4 {[%clk 0:03:02]} 6. Bd2 {[%clk 0:03:00]}  Bxc3 {[%clk 0:03:02]} 7. Bxc3 {[%clk 0:03:00]}  exd4 {[%clk 0:03:01]} 8. Ne2 {[%clk 0:03:01]}  Nge7 {[%clk 0:03:02]} 9. Nxd4 {[%clk 0:03:01]}  O-O {[%clk 0:03:02]} 10. Nxc6 {[%clk 0:02:44]}  Qxc6 {[%clk 0:03:03]} 11. Qd4 {[%clk 0:02:44]}  Nf5 {[%clk 0:02:59]} 12. Qc4 {[%clk 0:02:44]}  Qg6 {[%clk 0:02:54]} 13. Bd3 {[%clk 0:02:29]}  Be6 {[%clk 0:02:44]} 14. Qf4 {[%clk 0:02:28]}  Rad8 {[%clk 0:02:40]} 15. Be4 {[%clk 0:02:22]}  Rfe8 {[%clk 0:02:24]} 16. O-O {[%clk 0:02:21]}  c6 {[%clk 0:02:03]} 17. Rad1 {[%clk 0:02:13]}  h5 {[%clk 0:02:02]} 18. h3 {[%clk 0:02:08]}  Kh7 {[%clk 0:01:43]} 19. Kh2 {[%clk 0:02:05]}  Kg8 {[%clk 0:01:31]} 20. a4 {[%clk 0:01:52]}  Bc8 {[%clk 0:01:21]} 21. Bb1 {[%clk 0:01:40]}  h4 {[%clk 0:01:13]} 22. e4 {[%clk 0:01:36]}  Rxd1 {[%clk 0:00:48]} 23. Rxd1 {[%clk 0:01:34]}  Qh5 {[%clk 0:00:48]} 24. Rd2 {[%clk 0:01:16]}  Nh6 {[%clk 0:00:33]} 25. Ba2 {[%clk 0:01:10]}  Be6 {[%clk 0:00:32]} 26. Bxe6 {[%clk 0:01:09]}  Rxe6 {[%clk 0:00:33]} 27. Rd8+ {[%clk 0:01:02]}  Kh7 {[%clk 0:00:34]} 28. f3 {[%clk 0:00:59]}  Rg6 {[%clk 0:00:34]} 29. Qb8 {[%clk 0:00:51]}  Re6 {[%clk 0:00:26]} 30. Rh8+ {[%clk 0:00:48]}  Kg6 {[%clk 0:00:26]} 31. Qf4 {[%clk 0:00:41]}  f5 {[%clk 0:00:21]} 32. Qc7 {[%clk 0:00:32]}  Qg5 {[%clk 0:00:06]} 33. Qxg7+ {[%clk 0:00:29]}  Kh5 {[%clk 0:00:07]} 34. Qxg5+ {[%clk 0:00:26]}  Kxg5 {[%clk 0:00:08]} 35. Bd2+ {[%clk 0:00:25]}  f4 {[%clk 0:00:08]} 36. Rf8 {[%clk 0:00:25]}  Kg6 {[%clk 0:00:05]} 37. Bxf4 {[%clk 0:00:25]}  Nf7 {[%clk 0:00:06]} 38. Rg8+ {[%clk 0:00:23]}  Kh7 {[%clk 0:00:06]} 39. Rg4 {[%clk 0:00:23]}  b5 {[%clk 0:00:05]} 40. Rxh4+ {[%clk 0:00:23]}  Kg6 {[%clk 0:00:06]} 41. Rg4+ {[%clk 0:00:21]}  Kf6 {[%clk 0:00:06]} 42. Bd2 {[%clk 0:00:20]}  bxa4 {[%clk 0:00:06]} 43. Bc3+ {[%clk 0:00:20]}  Ke7 {[%clk 0:00:07]} 44. Rg7 {[%clk 0:00:20]}  c5 {[%clk 0:00:05]} 45. g4 {[%clk 0:00:17]}  Rb6 {[%clk 0:00:06]} 46. g5 {[%clk 0:00:16]}  Kf8 {[%clk 0:00:07]} 47. g6 {[%clk 0:00:16]}  Ng5 {[%clk 0:00:07]} 48. Rc7 {[%clk 0:00:14]}  Nxf3+ {[%clk 0:00:04]} 49. Kg3 {[%clk 0:00:14]}  Nd4 {[%clk 0:00:05]} 50. g7+ {[%clk 0:00:12]}  Kg8 {[%clk 0:00:05]} 51. Rxc5 {[%clk 0:00:09]}  Ne2+ {[%clk 0:00:05]} 52. Kg4 {[%clk 0:00:08]}  Nxc3 {[%clk 0:00:04]} 53. bxc3 {[%clk 0:00:09]}  Ra6 {[%clk 0:00:04]} 54. Rd5 {[%clk 0:00:07]}  a3 {[%clk 0:00:04]} 55. Rd1 {[%clk 0:00:07]}  Rc6 {[%clk 0:00:03]} 56. Rc1 {[%clk 0:00:07]}  Kxg7 {[%clk 0:00:02]} 57. Kf5 {[%clk 0:00:07]}  a2 {[%clk 0:00:03]} 58. Ra1 {[%clk 0:00:07]}  Rxc3 {[%clk 0:00:03]} 59. Rxa2 {[%clk 0:00:07]}  Rxh3 {[%clk 0:00:02]} 60. Rxa7+ {[%clk 0:00:07]}  Kf8 {[%clk 0:00:03]} 61. Ke6 {[%clk 0:00:05]}  Rh6+ {[%clk 0:00:01]} 62. Kd5 {[%clk 0:00:06]}  Ke8 {[%clk 0:00:02]} 63. e5 {[%clk 0:00:06]}  Rg6 {[%clk 0:00:02]} 64. Rb7 {[%clk 0:00:06]}  Rh6 {[%clk 0:00:03]} 65. Rg7 {[%clk 0:00:06]}  Ra6 {[%clk 0:00:03]} 66. Ke4 {[%clk 0:00:06]}  Ra4+ {[%clk 0:00:03]} 67. Kf5 {[%clk 0:00:07]}  Ra6 {[%clk 0:00:04]} 68. Rb7 {[%clk 0:00:07]}  Rh6 {[%clk 0:00:05]} 69. Rc7 {[%clk 0:00:07]}  Ra6 {[%clk 0:00:05]} 70. Rb7 {[%clk 0:00:07]}  Rh6 {[%clk 0:00:05]} 71. Kg5 {[%clk 0:00:07]}  Re6 {[%clk 0:00:05]} 72. Rb5 {[%clk 0:00:07]}  Ra6 {[%clk 0:00:06]} 73. Kf5 {[%clk 0:00:07]}  Rh6 {[%clk 0:00:07]} 74. Rd5 {[%clk 0:00:08]}  Ra6 {[%clk 0:00:06]} 75. Ke4 {[%clk 0:00:08]}  Ra4+ {[%clk 0:00:06]} 76. Kf5 {[%clk 0:00:08]}  Ra6 {[%clk 0:00:07]} 77. Rc5 {[%clk 0:00:09]}  Rb6 {[%clk 0:00:07]} 78. Rc4 {[%clk 0:00:09]}  Ra6 {[%clk 0:00:08]} 79. Rh4 {[%clk 0:00:10]}  Rb6 {[%clk 0:00:08]} 80. Rh7 {[%clk 0:00:10]}  Ra6 {[%clk 0:00:08]} 81. e6 {[%clk 0:00:11]}  Ra1 {[%clk 0:00:08]} 82. Rh4 {[%clk 0:00:11]}  Rf1+ {[%clk 0:00:08]} 83. Rf4 {[%clk 0:00:11]}  Rxf4+ {[%clk 0:00:08]} 84. Kxf4 {[%clk 0:00:12]}  Ke7 {[%clk 0:00:09]} 85. Ke5 {[%clk 0:00:13]}  Ke8 {[%clk 0:00:10]} 86. Kf6 {[%clk 0:00:14]}  Kf8 {[%clk 0:00:10]} 87. e7+ {[%clk 0:00:14]}  Ke8 {[%clk 0:00:11]} 88. Ke6 {[%clk 0:00:15]} 1/2-1/2


[Site "https://www.chess.com"]

[Event "Titled Tuesday Blitz October 25 Early 2022"]
[White "Dubov, Daniil"]
[Black "Korchmar, Vasiliy"]
[WhiteFideId "24126055"]
[BlackFideId "24131750"]
[WhiteElo "2791"]
[BlackElo "2370"]
[Result "1-0"]
[Round "04"]
[TimeControl "180+1"]
[Date "2022.10.25"]
[WhiteClock "0:00:48"]
[BlackClock "0:00:01"]

1. e4 {[%clk 0:03:00]}  c5 {[%clk 0:03:00]} 2. Nf3 {[%clk 0:03:00]}  d6 {[%clk 0:03:00]} 3. d4 {[%clk 0:03:00]}  cxd4 {[%clk 0:03:00]} 4. Nxd4 {[%clk 0:03:01]}  Nf6 {[%clk 0:03:01]} 5. Nc3 {[%clk 0:03:02]}  Nc6 {[%clk 0:03:02]} 6. Bg5 {[%clk 0:03:01]}  Bd7 {[%clk 0:03:01]} 7. Qd2 {[%clk 0:03:01]}  a6 {[%clk 0:03:01]} 8. f3 {[%clk 0:02:58]}  e6 {[%clk 0:02:59]} 9. O-O-O {[%clk 0:02:57]}  Be7 {[%clk 0:02:56]} 10. h4 {[%clk 0:02:55]}  Nxd4 {[%clk 0:02:56]} 11. Qxd4 {[%clk 0:02:55]}  Qc7 {[%clk 0:02:52]} 12. Kb1 {[%clk 0:02:54]}  b5 {[%clk 0:02:49]} 13. Qd2 {[%clk 0:02:51]}  O-O {[%clk 0:02:47]} 14. g4 {[%clk 0:02:50]}  Rfc8 {[%clk 0:02:37]} 15. Be3 {[%clk 0:02:36]}  b4 {[%clk 0:02:33]} 16. Ne2 {[%clk 0:02:36]}  Ba4 {[%clk 0:02:32]} 17. Rc1 {[%clk 0:02:30]}  a5 {[%clk 0:02:25]} 18. g5 {[%clk 0:02:26]}  Nd7 {[%clk 0:02:23]} 19. h5 {[%clk 0:02:26]}  Ne5 {[%clk 0:01:55]} 20. Nd4 {[%clk 0:02:25]}  Bd7 {[%clk 0:01:45]} 21. g6 {[%clk 0:02:16]}  a4 {[%clk 0:01:32]} 22. h6 {[%clk 0:02:03]}  fxg6 {[%clk 0:01:17]} 23. hxg7 {[%clk 0:01:59]}  a3 {[%clk 0:01:14]} 24. b3 {[%clk 0:01:28]}  Bf6 {[%clk 0:01:01]} 25. Qxb4 {[%clk 0:01:14]}  Bxg7 {[%clk 0:00:41]} 26. c4 {[%clk 0:01:06]}  Rcb8 {[%clk 0:00:35]} 27. Qd2 {[%clk 0:01:04]}  Qb7 {[%clk 0:00:16]} 28. Be2 {[%clk 0:01:00]}  Nc6 {[%clk 0:00:04]} 29. Nb5 {[%clk 0:00:59]}  d5 {[%clk 0:00:02]} 30. exd5 {[%clk 0:00:57]}  Ne5 {[%clk 0:00:01]} 31. Bd4 {[%clk 0:00:48]} 1-0


[Site "https://www.chess.com"]

[Event "Titled Tuesday Blitz October 25 Early 2022"]
[White "Firouzja, Alireza"]
[Black "Jones, Gawain C B"]
[WhiteFideId "12573981"]
[BlackFideId "409561"]
[WhiteElo "2903"]
[BlackElo "2657"]
[Result "0-1"]
[Round "04"]
[TimeControl "180+1"]
[Date "2022.10.25"]
[WhiteClock "0:00:01"]
[BlackClock "0:00:25"]

1. d4 {[%clk 0:03:00]}  Nf6 {[%clk 0:02:59]} 2. c4 {[%clk 0:03:01]}  g6 {[%clk 0:03:00]} 3. Nc3 {[%clk 0:03:02]}  Bg7 {[%clk 0:03:00]} 4. e4 {[%clk 0:03:02]}  d6 {[%clk 0:03:01]} 5. h3 {[%clk 0:02:54]}  e5 {[%clk 0:03:00]} 6. Nf3 {[%clk 0:02:39]}  exd4 {[%clk 0:02:58]} 7. Nxd4 {[%clk 0:02:40]}  O-O {[%clk 0:02:58]} 8. Be2 {[%clk 0:02:14]}  Re8 {[%clk 0:02:56]} 9. Qd3 {[%clk 0:02:01]}  Na6 {[%clk 0:02:52]} 10. Nb3 {[%clk 0:01:46]}  Nb4 {[%clk 0:02:20]} 11. Qd2 {[%clk 0:01:08]}  a5 {[%clk 0:02:17]} 12. a3 {[%clk 0:01:07]}  Nc6 {[%clk 0:02:12]} 13. Qd3 {[%clk 0:01:05]}  a4 {[%clk 0:02:01]} 14. Nd2 {[%clk 0:01:05]}  Nd7 {[%clk 0:02:01]} 15. O-O {[%clk 0:01:03]}  Nc5 {[%clk 0:01:58]} 16. Qg3 {[%clk 0:00:56]}  f5 {[%clk 0:01:49]} 17. exf5 {[%clk 0:00:26]}  Bxc3 {[%clk 0:01:44]} 18. Qxc3 {[%clk 0:00:25]}  Rxe2 {[%clk 0:01:43]} 19. b4 {[%clk 0:00:25]}  axb3 {[%clk 0:01:34]} 20. Bb2 {[%clk 0:00:26]}  Ne5 {[%clk 0:01:34]} 21. fxg6 {[%clk 0:00:17]}  Na4 {[%clk 0:01:26]} 22. gxh7+ {[%clk 0:00:18]}  Kxh7 {[%clk 0:01:15]} 23. Qxb3 {[%clk 0:00:07]}  Nxb2 {[%clk 0:00:51]} 24. Nf3 {[%clk 0:00:01]}  Nbxc4 {[%clk 0:00:43]} 25. Nd4 {[%clk 0:00:02]}  Rd2 {[%clk 0:00:38]} 26. Qc3 {[%clk 0:00:02]}  Qg8 {[%clk 0:00:28]} 27. Rae1 {[%clk 0:00:01]}  Rxd4 {[%clk 0:00:25]} 0-1


[Site "https://www.chess.com"]

[Event "Titled Tuesday Blitz October 25 Early 2022"]
[White "Gharibyan, Mamikon"]
[Black "Svane, Rasmus"]
[WhiteFideId "13308300"]
[BlackFideId "4657101"]
[WhiteElo "2378"]
[BlackElo "2674"]
[Result "0-1"]
[Round "04"]
[TimeControl "180+1"]
[Date "2022.10.25"]
[WhiteClock "0:00:01"]
[BlackClock "0:00:36"]

1. d4 {[%clk 0:02:51]}  Nf6 {[%clk 0:02:49]} 2. c4 {[%clk 0:02:46]}  e6 {[%clk 0:02:49]} 3. Nf3 {[%clk 0:02:46]}  d5 {[%clk 0:02:48]} 4. g3 {[%clk 0:02:42]}  Bb4+ {[%clk 0:02:47]} 5. Nbd2 {[%clk 0:02:35]}  dxc4 {[%clk 0:02:47]} 6. Bg2 {[%clk 0:02:33]}  b5 {[%clk 0:02:42]} 7. O-O {[%clk 0:02:16]}  a5 {[%clk 0:02:42]} 8. a3 {[%clk 0:02:09]}  Be7 {[%clk 0:02:41]} 9. a4 {[%clk 0:02:08]}  c6 {[%clk 0:02:40]} 10. Ne5 {[%clk 0:02:07]}  Ra6 {[%clk 0:02:38]} 11. Ne4 {[%clk 0:02:01]}  O-O {[%clk 0:02:31]} 12. Qc2 {[%clk 0:01:54]}  Nd5 {[%clk 0:02:25]} 13. Rd1 {[%clk 0:01:50]}  Nd7 {[%clk 0:02:23]} 14. Qb1 {[%clk 0:01:27]}  Qc7 {[%clk 0:02:16]} 15. Nf3 {[%clk 0:01:16]}  h6 {[%clk 0:02:14]} 16. h4 {[%clk 0:01:10]}  Rd8 {[%clk 0:02:12]} 17. Qc2 {[%clk 0:01:09]}  Bb7 {[%clk 0:02:12]} 18. b3 {[%clk 0:01:08]}  cxb3 {[%clk 0:02:11]} 19. Qxb3 {[%clk 0:01:08]}  b4 {[%clk 0:02:10]} 20. Bb2 {[%clk 0:01:07]}  c5 {[%clk 0:02:07]} 21. Rac1 {[%clk 0:01:07]}  Rc6 {[%clk 0:02:07]} 22. dxc5 {[%clk 0:01:02]}  Nxc5 {[%clk 0:02:07]} 23. Nxc5 {[%clk 0:01:00]}  Rxc5 {[%clk 0:02:07]} 24. Rxc5 {[%clk 0:00:54]}  Bxc5 {[%clk 0:02:05]} 25. Ne5 {[%clk 0:00:51]}  Rc8 {[%clk 0:01:45]} 26. h5 {[%clk 0:00:33]}  Bd6 {[%clk 0:01:37]} 27. Rc1 {[%clk 0:00:19]}  Qxc1+ {[%clk 0:01:33]} 28. Bxc1 {[%clk 0:00:20]}  Rxc1+ {[%clk 0:01:34]} 29. Kh2 {[%clk 0:00:20]}  Bxe5 {[%clk 0:01:34]} 30. Qd3 {[%clk 0:00:21]}  Bc6 {[%clk 0:01:25]} 31. f4 {[%clk 0:00:19]}  Bc7 {[%clk 0:01:12]} 32. e4 {[%clk 0:00:18]}  Nxf4 {[%clk 0:01:13]} 33. Qd2 {[%clk 0:00:14]}  Ne2 {[%clk 0:00:57]} 34. Qxe2 {[%clk 0:00:14]}  Rc3 {[%clk 0:00:57]} 35. e5 {[%clk 0:00:12]}  Bxg2 {[%clk 0:00:56]} 36. Kxg2 {[%clk 0:00:11]}  b3 {[%clk 0:00:56]} 37. Qb5 {[%clk 0:00:11]}  Kf8 {[%clk 0:00:48]} 38. Kh3 {[%clk 0:00:12]}  Ke7 {[%clk 0:00:44]} 39. Kh4 {[%clk 0:00:10]}  f6 {[%clk 0:00:44]} 40. exf6+ {[%clk 0:00:10]}  gxf6 {[%clk 0:00:43]} 41. Qb7 {[%clk 0:00:10]}  Kd6 {[%clk 0:00:41]} 42. Kg4 {[%clk 0:00:10]}  Rc4+ {[%clk 0:00:40]} 43. Kf3 {[%clk 0:00:09]}  Rb4 {[%clk 0:00:41]} 44. Qa6+ {[%clk 0:00:09]}  Ke7 {[%clk 0:00:39]} 45. Qa7 {[%clk 0:00:08]}  Kd7 {[%clk 0:00:38]} 46. Qe3 {[%clk 0:00:04]}  b2 {[%clk 0:00:38]} 47. Qd3+ {[%clk 0:00:04]}  Bd6 {[%clk 0:00:38]} 48. Qh7+ {[%clk 0:00:04]}  Kc6 {[%clk 0:00:38]} 49. Qc2+ {[%clk 0:00:05]}  Bc5 {[%clk 0:00:38]} 50. Qb1 {[%clk 0:00:04]}  Kb6 {[%clk 0:00:38]} 51. g4 {[%clk 0:00:04]}  Bd4 {[%clk 0:00:37]} 52. Ke4 {[%clk 0:00:03]}  Be5+ {[%clk 0:00:36]} 53. Kf3 {[%clk 0:00:03]}  Rxa4 {[%clk 0:00:36]} 54. Ke2 {[%clk 0:00:01]}  Ra1 {[%clk 0:00:36]} 0-1


[Site "https://www.chess.com"]

[Event "Titled Tuesday Blitz October 25 Early 2022"]
[White "Mathieu, Phileas"]
[Black "Aitbayev, Aslan"]
[WhiteFideId "36048410"]
[BlackFideId "13704613"]
[WhiteElo "2241"]
[BlackElo "2373"]
[Result "0-1"]
[Round "04"]
[TimeControl "180+1"]
[Date "2022.10.25"]
[WhiteClock "0:00:01"]
[BlackClock "0:00:04"]

1. e4 {[%clk 0:03:00]}  d6 {[%clk 0:02:58]} 2. d4 {[%clk 0:02:59]}  Nf6 {[%clk 0:02:58]} 3. Nc3 {[%clk 0:02:59]}  g6 {[%clk 0:02:58]} 4. h3 {[%clk 0:02:55]}  Bg7 {[%clk 0:02:55]} 5. Be3 {[%clk 0:02:54]}  a6 {[%clk 0:02:53]} 6. a4 {[%clk 0:02:54]}  O-O {[%clk 0:02:46]} 7. Nf3 {[%clk 0:02:54]}  Nc6 {[%clk 0:02:41]} 8. Qd2 {[%clk 0:02:49]}  e5 {[%clk 0:02:40]} 9. dxe5 {[%clk 0:02:48]}  Nxe5 {[%clk 0:02:37]} 10. Nxe5 {[%clk 0:02:43]}  dxe5 {[%clk 0:02:38]} 11. Rd1 {[%clk 0:02:29]}  Be6 {[%clk 0:02:29]} 12. Qxd8 {[%clk 0:02:17]}  Rfxd8 {[%clk 0:02:28]} 13. f3 {[%clk 0:02:18]}  Nh5 {[%clk 0:02:22]} 14. Rxd8+ {[%clk 0:02:11]}  Rxd8 {[%clk 0:02:21]} 15. Kf2 {[%clk 0:02:11]}  Bf8 {[%clk 0:02:14]} 16. Bd3 {[%clk 0:02:05]}  Nf4 {[%clk 0:02:06]} 17. Rd1 {[%clk 0:01:48]}  Bb4 {[%clk 0:02:02]} 18. Bf1 {[%clk 0:01:43]}  Rxd1 {[%clk 0:01:54]} 19. Nxd1 {[%clk 0:01:42]}  Bd7 {[%clk 0:01:54]} 20. b3 {[%clk 0:01:38]}  Ne6 {[%clk 0:01:44]} 21. Bc4 {[%clk 0:01:27]}  Kf8 {[%clk 0:01:36]} 22. Nb2 {[%clk 0:01:21]}  Bc3 {[%clk 0:01:16]} 23. Nd3 {[%clk 0:01:16]}  b5 {[%clk 0:01:12]} 24. axb5 {[%clk 0:01:01]}  axb5 {[%clk 0:01:11]} 25. Nc5 {[%clk 0:00:56]}  bxc4 {[%clk 0:00:52]} 26. Nxd7+ {[%clk 0:00:55]}  Ke7 {[%clk 0:00:50]} 27. Nc5 {[%clk 0:00:55]}  Nd4 {[%clk 0:00:40]} 28. Na4 {[%clk 0:00:34]}  Ba1 {[%clk 0:00:32]} 29. bxc4 {[%clk 0:00:30]}  Nxc2 {[%clk 0:00:30]} 30. Bc5+ {[%clk 0:00:30]}  Kd7 {[%clk 0:00:26]} 31. Ke2 {[%clk 0:00:30]}  Nd4+ {[%clk 0:00:24]} 32. Kd3 {[%clk 0:00:17]}  Ne6 {[%clk 0:00:23]} 33. Be3 {[%clk 0:00:17]}  Bd4 {[%clk 0:00:20]} 34. Bxd4 {[%clk 0:00:16]}  exd4 {[%clk 0:00:19]} 35. c5 {[%clk 0:00:15]}  Nf4+ {[%clk 0:00:16]} 36. Kxd4 {[%clk 0:00:15]}  Nxg2 {[%clk 0:00:17]} 37. Kd5 {[%clk 0:00:14]}  Nf4+ {[%clk 0:00:16]} 38. Ke5 {[%clk 0:00:15]}  Nxh3 {[%clk 0:00:15]} 39. Kf6 {[%clk 0:00:15]}  Nf4 {[%clk 0:00:15]} 40. Kg5 {[%clk 0:00:13]}  Ne6+ {[%clk 0:00:13]} 41. Kh6 {[%clk 0:00:13]}  Kc6 {[%clk 0:00:12]} 42. Kxh7 {[%clk 0:00:14]}  Nxc5 {[%clk 0:00:12]} 43. Nc3 {[%clk 0:00:14]}  Kd6 {[%clk 0:00:11]} 44. Kg7 {[%clk 0:00:14]}  Ke6 {[%clk 0:00:08]} 45. Nb5 {[%clk 0:00:15]}  Na6 {[%clk 0:00:07]} 46. f4 {[%clk 0:00:13]}  c5 {[%clk 0:00:07]} 47. Nc3 {[%clk 0:00:10]}  c4 {[%clk 0:00:06]} 48. Ne2 {[%clk 0:00:10]}  Nc5 {[%clk 0:00:06]} 49. Nd4+ {[%clk 0:00:10]}  Ke7 {[%clk 0:00:06]} 50. f5 {[%clk 0:00:09]}  Nxe4 {[%clk 0:00:05]} 51. fxg6 {[%clk 0:00:10]}  fxg6 {[%clk 0:00:05]} 52. Kxg6 {[%clk 0:00:10]}  Kd6 {[%clk 0:00:06]} 53. Kf5 {[%clk 0:00:11]}  Kd5 {[%clk 0:00:06]} 54. Nb5 {[%clk 0:00:11]}  Nc5 {[%clk 0:00:06]} 55. Nc3+ {[%clk 0:00:10]}  Kd4 {[%clk 0:00:06]} 56. Nb5+ {[%clk 0:00:10]}  Kd3 {[%clk 0:00:06]} 57. Ke5 {[%clk 0:00:10]}  Na4 {[%clk 0:00:06]} 58. Kf4 {[%clk 0:00:06]}  Nc3 {[%clk 0:00:06]} 59. Na3 {[%clk 0:00:05]}  Ne2+ {[%clk 0:00:06]} 60. Kf3 {[%clk 0:00:06]}  c3 {[%clk 0:00:07]} 61. Kf2 {[%clk 0:00:05]}  Nd4 {[%clk 0:00:06]} 62. Kg2 {[%clk 0:00:03]}  Ke2 {[%clk 0:00:04]} 63. Kg3 {[%clk 0:00:02]}  Kd3 {[%clk 0:00:04]} 64. Kf2 {[%clk 0:00:02]}  Nb5 {[%clk 0:00:04]} 65. Nb1 {[%clk 0:00:01]}  c2 {[%clk 0:00:04]} 0-1


[Site "https://www.chess.com"]

[Event "Titled Tuesday Blitz October 25 Early 2022"]
[White "Ovchinnikov, Vsevolod"]
[Black "Wirig, Anthony"]
[WhiteFideId "24176842"]
[BlackFideId "615013"]
[WhiteElo "2376"]
[BlackElo "2474"]
[Result "1-0"]
[Round "04"]
[TimeControl "180+1"]
[Date "2022.10.25"]
[WhiteClock "0:00:11"]
[BlackClock "0:00:02"]

1. d4 {[%clk 0:03:00]}  Nf6 {[%clk 0:02:57]} 2. c4 {[%clk 0:03:00]}  e6 {[%clk 0:02:58]} 3. g3 {[%clk 0:03:01]}  Bb4+ {[%clk 0:02:58]} 4. Bd2 {[%clk 0:03:00]}  Bxd2+ {[%clk 0:02:59]} 5. Qxd2 {[%clk 0:03:00]}  d5 {[%clk 0:03:00]} 6. Nf3 {[%clk 0:02:59]}  O-O {[%clk 0:03:00]} 7. Bg2 {[%clk 0:02:58]}  Qe7 {[%clk 0:03:01]} 8. O-O {[%clk 0:02:56]}  Nbd7 {[%clk 0:02:58]} 9. Qc2 {[%clk 0:02:38]}  c6 {[%clk 0:02:55]} 10. Nbd2 {[%clk 0:02:36]}  b6 {[%clk 0:02:52]} 11. e4 {[%clk 0:02:28]}  dxc4 {[%clk 0:02:17]} 12. Nxc4 {[%clk 0:02:02]}  Ba6 {[%clk 0:02:16]} 13. Rfe1 {[%clk 0:01:51]}  Rac8 {[%clk 0:02:09]} 14. Nce5 {[%clk 0:01:32]}  Nxe5 {[%clk 0:01:51]} 15. Nxe5 {[%clk 0:01:33]}  c5 {[%clk 0:01:48]} 16. Qa4 {[%clk 0:01:23]}  Qb7 {[%clk 0:01:32]} 17. d5 {[%clk 0:01:12]}  b5 {[%clk 0:01:22]} 18. Qa5 {[%clk 0:00:59]}  Qb6 {[%clk 0:01:11]} 19. Qxb6 {[%clk 0:00:59]}  axb6 {[%clk 0:01:12]} 20. dxe6 {[%clk 0:00:58]}  fxe6 {[%clk 0:01:11]} 21. Bh3 {[%clk 0:00:59]}  Rfe8 {[%clk 0:01:08]} 22. Rad1 {[%clk 0:00:58]}  Rcd8 {[%clk 0:00:45]} 23. Bxe6+ {[%clk 0:00:46]}  Kf8 {[%clk 0:00:45]} 24. Nd7+ {[%clk 0:00:45]}  Nxd7 {[%clk 0:00:40]} 25. Bxd7 {[%clk 0:00:45]}  Re7 {[%clk 0:00:33]} 26. Bc6 {[%clk 0:00:45]}  Rc8 {[%clk 0:00:26]} 27. Rd6 {[%clk 0:00:37]}  b4 {[%clk 0:00:23]} 28. e5 {[%clk 0:00:29]}  Bc4 {[%clk 0:00:20]} 29. a3 {[%clk 0:00:25]}  bxa3 {[%clk 0:00:18]} 30. bxa3 {[%clk 0:00:26]}  b5 {[%clk 0:00:13]} 31. f4 {[%clk 0:00:26]}  Ra7 {[%clk 0:00:13]} 32. Re3 {[%clk 0:00:25]}  Ke7 {[%clk 0:00:13]} 33. Be4 {[%clk 0:00:21]}  Rd8 {[%clk 0:00:12]} 34. Rxd8 {[%clk 0:00:20]}  Kxd8 {[%clk 0:00:13]} 35. Bxh7 {[%clk 0:00:19]}  b4 {[%clk 0:00:14]} 36. axb4 {[%clk 0:00:19]}  cxb4 {[%clk 0:00:15]} 37. Re4 {[%clk 0:00:16]}  Rc7 {[%clk 0:00:14]} 38. Rd4+ {[%clk 0:00:14]}  Ke7 {[%clk 0:00:15]} 39. Bd3 {[%clk 0:00:11]}  Bxd3 {[%clk 0:00:10]} 40. Rxd3 {[%clk 0:00:12]}  Rb7 {[%clk 0:00:11]} 41. Rb3 {[%clk 0:00:12]}  Ke6 {[%clk 0:00:11]} 42. Kf2 {[%clk 0:00:06]}  Kd5 {[%clk 0:00:12]} 43. Kf3 {[%clk 0:00:07]}  Kc4 {[%clk 0:00:12]} 44. Rb1 {[%clk 0:00:07]}  Kc3 {[%clk 0:00:13]} 45. Ke4 {[%clk 0:00:07]}  Kc2 {[%clk 0:00:13]} 46. Rf1 {[%clk 0:00:07]}  b3 {[%clk 0:00:14]} 47. f5 {[%clk 0:00:07]}  b2 {[%clk 0:00:13]} 48. e6 {[%clk 0:00:08]}  b1=Q {[%clk 0:00:12]} 49. Rxb1 {[%clk 0:00:08]}  Rxb1 {[%clk 0:00:12]} 50. g4 {[%clk 0:00:08]}  Kc3 {[%clk 0:00:10]} 51. Kd5 {[%clk 0:00:08]}  Rd1+ {[%clk 0:00:10]} 52. Kc6 {[%clk 0:00:08]}  Kc4 {[%clk 0:00:07]} 53. e7 {[%clk 0:00:08]}  Re1 {[%clk 0:00:04]} 54. Kd7 {[%clk 0:00:09]}  Rd1+ {[%clk 0:00:04]} 55. Ke6 {[%clk 0:00:09]}  Re1+ {[%clk 0:00:05]} 56. Kf7 {[%clk 0:00:09]}  Kd5 {[%clk 0:00:03]} 57. e8=Q {[%clk 0:00:09]}  Rxe8 {[%clk 0:00:03]} 58. Kxe8 {[%clk 0:00:10]}  Ke5 {[%clk 0:00:02]} 59. Kf7 {[%clk 0:00:11]} 1-0


[Site "https://www.chess.com"]